bitfinex/quotes_ETHUSD_20250424
["timestamp","ask_amount","ask_price","bid_price","bid_amount"]
[1745509866778,12.41140479,1766.7,1766.4,0.52822339]
[1745509866944,5.108,1766.7,1766.4,11.85046775]
[1745509867273,0.51568116,1769.6,1766.8,5.65984263]
[1745509867274,5.8686,1767.2,1766.8,5.65984263]
[1745509867484,5.65958177,1767.0,1766.6,5.66050262]
[1745509867692,5.6589893,1767.1,1766.5,6.18902088]
[1745509867892,5.65978677,1766.9,1766.7,0.52822339]
[1745509868261,5.65978677,1766.9,1766.3,3.0]
[1745509868262,5.65978677,1766.9,1766.8,0.52822339]
[1745509868464,5.6594544,1767.0,1766.8,0.52822339]
[1745509868642,6.91284108,1767.1,1766.8,0.52822339]
[1745509868843,1.25366152,1767.1,1766.9,0.52822339]
[1745509869043,5.8686,1767.2,1766.9,0.52822339]
[1745509869296,11.52744501,1767.2,1766.9,0.52822339]
[1745509869471,11.52744501,1767.2,1766.9,6.18782789]
[1745509869782,11.527297,1767.2,1767.0,0.52822339]
[1745509869970,11.527297,1767.2,1766.8,5.65966018]
[1745509869971,11.52748425,1767.2,1767.1,0.52822339]
[1745509870167,13.36697556,1767.2,1767.1,0.52822339]
[1745509870551,5.65962058,1767.0,1766.7,0.52822339]
[1745509870751,5.65955838,1767.0,1766.7,0.52822339]
[1745509871166,6.66813388,1767.1,1766.7,0.52822339]
[1745509871363,5.65950838,1767.0,1766.8,0.52822339]
[1745509871777,5.65950838,1767.0,1766.9,0.52822339]
[1745509871983,6.79137001,1767.0,1766.9,0.52822339]
[1745509872149,7.57447001,1767.0,1766.9,0.52822339]
[1745509872354,5.66033131,1766.7,1766.4,6.1894361]
[1745509872578,5.66033131,1766.7,1766.4,0.52822339]
[1745509872579,5.66046796,1766.7,1766.4,0.52822339]
[1745509872952,5.6609114,1766.5,1766.1,11.32409722]
[1745509873180,5.6609114,1766.5,1766.1,12.45650694]
[1745509873399,5.6609114,1766.5,1766.2,0.52877792]
[1745509874103,5.66126362,1766.4,1766.3,0.52877792]
[1745509874399,6.44381931,1766.6,1766.3,0.52877792]
[1745509874600,5.922,1766.8,1766.5,5.66091017]
[1745509874898,5.922,1766.8,1766.6,0.52877792]
[1745509875305,11.58200575,1766.8,1766.6,0.52877792]
[1745509875604,5.108,1766.8,1766.7,0.52877792]
[1745509875983,0.814,1767.0,1766.7,6.18895867]
[1745509876177,5.108,1767.0,1766.7,7.37389955]
[1745509876411,5.108,1767.0,1766.8,0.52877792]
[1745509876794,5.108,1767.0,1766.8,6.18862754]
[1745509876969,5.108,1767.0,1766.9,0.52877792]
[1745509877874,5.108,1767.0,1766.9,6.18840778]
[1745509878076,10.76654593,1767.3,1766.9,7.37302788]
[1745509878472,10.76654593,1767.3,1767.0,0.52877792]
[1745509878672,5.6587783,1767.2,1767.0,0.52877792]
[1745509878977,5.6587783,1767.2,1767.1,0.52877792]
[1745509880390,9.66780424,1767.2,1767.1,0.52877792]
[1745509880700,5.65951713,1767.0,1766.7,5.66021546]
[1745509880921,12.27701723,1767.2,1766.5,5.66074631]
[1745509881084,5.65978482,1766.9,1766.5,11.321483]
[1745509881282,5.65949911,1767.0,1766.6,6.18873545]
[1745509881486,5.65949911,1767.0,1766.7,5.66023976]
[1745509881816,11.31909783,1767.0,1766.6,6.18873545]
[1745509882119,5.6588225,1767.2,1766.8,6.18795594]
[1745509882321,5.65962986,1766.9,1766.8,0.52816662]
[1745509882699,6.22506887,1767.1,1766.8,0.52816662]
[1745509882700,5.659525,1767.0,1766.8,0.52816662]
[1745509882920,5.65884482,1767.2,1766.8,0.52816662]
[1745509883098,11.55567656,1767.3,1766.9,6.18762831]
[1745509883298,5.8972,1767.3,1766.9,6.18762831]
[1745509883511,11.55580881,1767.3,1767.0,0.52816662]
[1745509883818,5.65877882,1767.2,1767.1,0.52816662]
[1745509884023,5.8972,1767.3,1767.1,0.52816662]
[1745509884194,5.65866908,1767.2,1767.1,0.52816662]
[1745509884530,11.31760747,1767.2,1766.8,5.65979471]
[1745509884723,5.65866908,1767.2,1766.8,11.31953362]
[1745509884905,5.65866908,1767.2,1766.9,0.52782862]
[1745509885111,5.65902615,1767.1,1766.9,0.52782862]
[1745509885505,5.65877381,1767.2,1766.9,0.52782862]
[1745509885920,11.3176915,1767.2,1767.0,0.52782862]
[1745509886221,5.65819519,1767.4,1767.0,5.65913444]
[1745509886412,5.65861699,1767.3,1766.9,5.65944562]
[1745509886614,5.65861699,1767.3,1767.1,0.52781166]
[1745509886790,5.65861699,1767.3,1767.0,0.52781166]
[1745509887199,5.65861699,1767.3,1767.1,0.52781166]
[1745509887704,5.65861699,1767.3,1766.9,12.45076278]
[1745509887899,5.65861699,1767.3,1766.9,6.79133042]
[1745509888104,5.65861699,1767.3,1767.0,0.52785308]
[1745509888308,5.65861699,1767.3,1767.1,0.52785308]
[1745509889243,5.65861699,1767.3,1767.0,5.65928953]
[1745509889547,5.65861699,1767.3,1766.9,5.65940013]
[1745509890040,5.65861699,1767.3,1767.0,0.52794379]
[1745509890225,5.65861268,1767.3,1767.0,0.52794379]
[1745509890537,5.65860509,1767.3,1767.0,0.52794379]
[1745509891546,5.65866908,1767.2,1767.1,0.52794379]
[1745509892440,1.64237914,1767.3,1767.1,0.52794379]
[1745509892643,10.76521133,1767.4,1767.1,0.52794379]
[1745509893338,5.65835825,1767.3,1767.0,5.6591861]
[1745509893527,5.65835825,1767.3,1766.9,11.31893253]
[1745509893730,5.65835825,1767.3,1766.9,5.65942622]
[1745509894122,5.65835825,1767.3,1766.9,11.31884049]
[1745509894318,1.64235516,1767.3,1767.0,0.52817849]
[1745509894519,8.30989238,1767.3,1767.0,0.52817849]
[1745509894727,5.65883132,1767.2,1767.0,0.52817849]
[1745509895017,1.64235516,1767.3,1767.1,0.52817849]
[1745509895206,5.107,1767.4,1767.1,0.52817849]
[1745509895405,5.65847835,1767.3,1767.1,0.52817849]
[1745509895610,5.65847835,1767.3,1767.2,0.52817849]
[1745509895876,5.65847835,1767.3,1767.0,5.65921458]
[1745509896082,10.76531145,1767.4,1767.2,0.5283936]
[1745509896384,10.76519473,1767.4,1767.3,0.5283936]
[1745509896680,5.107,1767.4,1767.3,0.5283936]
[1745509897046,10.76502874,1767.4,1767.3,0.5283936]
[1745509897258,12.48572186,1767.4,1767.3,0.5283936]
[1745509897556,5.65843752,1767.3,1767.0,5.65927216]
[1745509897753,0.784,1767.5,1767.0,5.65930956]
[1745509897953,6.44180218,1767.5,1767.2,5.65859128]
[1745509898185,6.44185675,1767.5,1767.0,5.65913726]
[1745509898393,5.65814745,1767.4,1767.0,5.65910059]
[1745509898543,5.65866253,1767.3,1766.9,5.65944596]
[1745509898749,5.65869082,1767.2,1767.0,0.52843463]
[1745509899188,11.31727293,1767.3,1767.0,0.52843463]
[1745509899488,5.6586833,1767.2,1767.1,0.52843463]
[1745509899690,5.6586104,1767.3,1767.1,0.52843463]
[1745509899896,10.7656104,1767.3,1767.1,0.52843463]
[1745509900099,10.7656104,1767.3,1766.8,5.65975597]
[1745509900100,12.40798683,1767.3,1767.2,0.52843463]
[1745509900270,16.20088683,1767.3,1767.2,0.52843463]
[1745509900681,5.65977206,1766.9,1766.7,0.52843463]
[1745509901087,5.65977206,1766.9,1766.8,0.52843463]
[1745509901391,5.65939974,1767.0,1766.8,0.52843463]
[1745509901786,5.65939974,1767.0,1766.9,0.52843463]
[1745509902081,5.6591331,1767.1,1766.9,0.52843463]
[1745509902288,5.65885779,1767.2,1766.9,0.52843463]
[1745509902485,1.32011342,1767.2,1766.9,0.52843463]
[1745509902793,5.65888998,1767.2,1766.9,0.52843463]
[1745509905085,5.66034987,1766.7,1766.3,5.6613456]
[1745509905397,5.66037944,1766.7,1766.4,6.19066669]
[1745509905596,5.66013101,1766.8,1766.4,6.19066669]
[1745509905804,5.66027318,1766.7,1766.4,6.19059365]
[1745509905998,5.66013101,1766.8,1766.5,0.52954998]
[1745509906174,5.6602962,1766.7,1766.5,0.52954998]
[1745509906376,5.66013101,1766.8,1766.5,0.52954998]
[1745509906585,5.66013101,1766.8,1766.6,0.52954998]
[1745509906788,5.66027056,1766.7,1766.6,0.52954998]
[1745509907904,11.32037559,1766.8,1766.6,0.52954998]
[1745509908119,5.66012756,1766.8,1766.6,0.52954998]
[1745509908486,5.66012756,1766.8,1766.7,0.52954998]
[1745509908794,10.7667999,1766.9,1766.7,0.52954998]
[1745509908997,5.107,1766.9,1766.7,0.52954998]
[1745509909311,5.107,1766.9,1766.8,0.52954998]
[1745509909669,10.76662986,1766.9,1766.8,0.52954998]
[1745509911113,12.40923871,1766.9,1766.8,0.52954998]
[1745509912406,5.66020871,1766.8,1766.3,5.66129838]
[1745509912595,5.66020871,1766.8,1766.4,11.32208958]
[1745509912911,5.66019856,1766.8,1766.4,5.6610305]
[1745509913212,5.66019856,1766.8,1766.5,0.52885634]
[1745509913710,5.66018916,1766.8,1766.5,0.52885634]
[1745509913913,5.66018742,1766.8,1766.6,0.52885634]
[1745509914112,5.66018742,1766.8,1766.7,0.52885634]
[1745509914314,18.06928847,1766.9,1766.7,0.52885634]
[1745509914615,12.40940731,1766.9,1766.7,0.52885634]
[1745509914820,10.76679846,1766.9,1766.8,0.52885634]
[1745509915713,5.107,1766.9,1766.8,0.52885634]
[1745509916115,5.107,1766.9,1766.8,6.18880653]
[1745509916322,5.108,1767.2,1766.8,0.52885634]
[1745509916488,5.108,1767.2,1766.9,6.18830048]
[1745509916930,5.108,1767.2,1767.0,0.52885634]
[1745509917086,5.108,1767.2,1767.0,6.18799529]
[1745509917419,5.108,1767.2,1767.1,0.52885634]
[1745509918421,11.59586215,1767.5,1767.1,6.18784564]
[1745509918631,11.59586215,1767.5,1767.2,0.52885634]
[1745509919324,11.59586215,1767.5,1767.0,5.65913613]
[1745509919325,11.59585145,1767.5,1767.3,0.52885634]
[1745509919623,5.65802874,1767.4,1767.3,0.52885634]
[1745509919919,12.75543767,1767.5,1767.0,5.65930956]
[1745509920221,5.938,1767.5,1767.2,5.65859981]
[1745509920732,5.938,1767.5,1767.3,0.52844426]
[1745509921296,5.107,1767.5,1767.4,5.65802874]
[1745509921496,25.9047,1767.8,1767.4,0.52844426]
[1745509921709,5.65770862,1767.5,1767.4,0.52844426]
[1745509922022,0.8187,1767.5,1767.0,5.65912701]
[1745509922320,0.8187,1767.5,1767.2,5.65846513]
[1745509922492,0.8187,1767.5,1767.3,0.52829904]
[1745509922493,6.47643112,1767.5,1767.3,0.52829904]
[1745509922820,10.76323265,1767.7,1767.3,11.84461098]
[1745509923123,10.76323265,1767.7,1767.4,0.52829904]
[1745509923507,5.106,1767.7,1767.4,5.65791449]
[1745509923720,5.106,1767.7,1767.5,11.3151435]
[1745509923887,5.106,1767.7,1767.5,6.1856279]
[1745509924438,5.106,1767.7,1767.5,5.657508]
[1745509924925,5.106,1767.7,1767.5,5.65748686]
[1745509925125,5.106,1767.7,1767.6,0.52772804]
[1745509925326,5.65687571,1767.8,1767.6,0.52772804]
[1745509925499,5.65659914,1767.9,1767.6,0.52772804]
[1745509925686,5.65659914,1767.9,1767.7,0.52772804]
[1745509925891,5.6567485,1767.8,1767.5,5.65749145]
[1745509926426,5.6567485,1767.8,1767.4,5.6577979]
[1745509926627,5.6567485,1767.8,1767.5,0.52748194]
[1745509926824,6.78808327,1767.8,1767.5,0.52748194]
[1745509927127,5.65738854,1767.6,1767.2,5.65839477]
[1745509927323,5.6574389,1767.6,1767.3,6.18564749]
[1745509927503,6.48579773,1767.7,1767.3,6.18555415]
[1745509927708,6.48578617,1767.7,1767.3,6.18555415]
[1745509928040,6.48578617,1767.7,1767.4,6.18539424]
[1745509928242,0.8286,1767.7,1767.4,6.18539424]
[1745509928542,9.48515863,1767.9,1767.5,5.65768041]
[1745509928827,11.04517709,1767.9,1767.5,5.65768041]
[1745509929145,11.04517709,1767.9,1767.6,5.6573821]
[1745509929639,0.8286,1767.9,1767.6,5.65716277]
[1745509930448,5.105,1768.0,1767.8,5.65665302]
[1745509930733,5.105,1768.0,1767.7,11.31377315]
[1745509931212,5.105,1768.0,1767.8,5.65672216]
[1745509931602,5.105,1768.0,1767.8,5.65655303]
[1745509931933,5.105,1768.0,1767.9,5.65642853]
[1745509932435,5.105,1768.0,1767.8,11.9796326]
[1745509932622,5.8971,1768.3,1767.9,5.65642853]
[1745509932794,5.105,1768.4,1768.1,5.65568563]
[1745509932993,5.105,1768.4,1768.0,5.6559859]
[1745509933252,10.76003018,1768.4,1768.0,11.97852009]
[1745509933394,10.76003018,1768.4,1768.0,6.32242388]
[1745509933748,5.105,1768.4,1768.3,5.65514901]
[1745509933897,0.8253,1768.7,1768.4,5.65472068]
[1745509934097,5.9303,1768.7,1768.4,5.65470956]
[1745509934349,5.65335598,1768.9,1768.5,1.00902594]
[1745509934350,0.7975,1768.9,1768.5,1.00902594]
[1745509934511,6.44955635,1769.3,1768.8,5.65344762]
[1745509934694,5.105,1769.2,1768.9,5.65303694]
[1745509935095,5.105,1769.2,1768.7,1.00902594]
[1745509935341,5.105,1769.2,1768.8,5.65329272]
[1745509935505,9.08069481,1769.4,1768.9,6.21845304]
[1745509935506,5.105,1769.4,1768.9,6.21845304]
[1745509935702,16.40864359,1769.4,1769.0,5.65278554]
[1745509935905,5.651963,1769.3,1768.9,6.21834671]
[1745509936526,5.105,1769.4,1768.9,0.56532927]
[1745509936729,10.75665143,1769.4,1769.0,5.65279785]
[1745509937001,5.105,1769.4,1769.3,5.65195274]
[1745509937229,6.45388056,1769.7,1769.2,5.65212576]
[1745509937230,5.65100311,1769.6,1769.2,5.65212576]
[1745509937400,5.65100311,1769.6,1769.2,5.65223628]
[1745509937600,5.65147047,1769.5,1769.1,6.66143958]
[1745509937830,5.65164305,1769.4,1769.1,1.23141661]
[1745509938039,5.65164305,1769.4,1769.0,11.30541751]
[1745509938339,5.65147047,1769.5,1769.0,11.30541751]
[1745509938340,5.65153162,1769.5,1769.1,5.65255395]
[1745509938499,17.20873537,1769.7,1769.3,5.65179133]
[1745509938701,11.55778641,1769.7,1769.2,5.65211679]
[1745509938904,5.65119444,1769.6,1769.2,5.65211679]
[1745509939145,5.65119444,1769.6,1769.2,6.78257796]
[1745509939316,5.65144899,1769.5,1769.2,1.13046117]
[1745509939516,5.65144899,1769.5,1769.1,5.65230014]
[1745509939711,11.30229404,1769.6,1769.1,5.65230014]
[1745509939910,11.55788995,1769.7,1769.3,5.65194115]
[1745509940149,11.55788995,1769.7,1769.3,5.65175933]
[1745509940507,0.803,1769.7,1769.5,5.65117386]
[1745509940742,5.52369386,1769.8,1769.5,5.65117386]
[1745509940947,11.17426661,1769.8,1769.5,0.56511739]
[1745509941109,5.103,1769.8,1769.5,6.21642426]
[1745509941310,5.103,1769.8,1769.1,1.00902594]
[1745509941513,5.103,1769.8,1671.2,1.0]
[1745509941514,5.65205948,1769.3,1768.8,0.2199]
[1745509941710,5.65238276,1769.2,1768.8,0.2199]
[1745509941907,5.65309704,1769.0,1768.5,0.2199]
[1745509942150,5.65336046,1768.9,1768.5,5.87425889]
[1745509942371,5.65276512,1769.1,1768.6,6.24146091]
[1745509942509,1.00902594,1769.2,1768.6,0.58742589]
[1745509942714,5.65346345,1768.9,1768.5,0.2199]
[1745509943034,5.65346345,1768.9,1768.5,5.87416367]
[1745509943224,5.65364328,1768.8,1768.5,0.2199]
[1745509943550,5.65384651,1768.8,1768.4,5.65480653]
[1745509943753,5.65409303,1768.7,1768.3,5.87483206]
[1745509943910,5.65409303,1768.7,1768.4,0.58748321]
[1745509944116,5.65372261,1768.8,1768.3,5.87479276]
[1745509944336,5.65372261,1768.8,1768.3,5.87484794]
[1745509944546,5.65468422,1768.5,1768.1,0.2199]
[1745509944707,5.65435675,1768.6,1768.1,0.2199]
[1745509944911,5.65401463,1768.7,1768.3,5.65514501]
[1745509945153,11.30816395,1768.7,1768.3,6.78618471]
[1745509945335,5.65401463,1768.7,1768.3,6.78618471]
[1745509945539,11.3081787,1768.7,1768.3,6.78618471]
[1745509945938,11.3081787,1768.7,1768.1,0.2199]
[1745509945939,5.65387007,1768.7,1768.1,0.2199]
[1745509946139,5.65534541,1768.3,1768.0,0.66650118]
[1745509946338,5.65578869,1768.1,1767.8,0.6665579]
[1745509946567,5.65631211,1768.0,1767.7,0.2199]
[1745509946869,5.65641145,1768.0,1767.5,0.2199]
[1745509947036,5.65672226,1767.9,1767.5,5.87740082]
[1745509947368,5.101,1768.2,1768.0,5.65602773]
[1745509947538,5.65493304,1768.4,1768.0,5.65602773]
[1745509947729,5.65514989,1768.3,1768.1,0.56560277]
[1745509947930,5.65514989,1768.3,1767.9,5.87620907]
[1745509948157,5.65498397,1768.4,1767.9,5.87619438]
[1745509948365,5.65525747,1768.3,1767.9,5.87616326]
[1745509948583,5.8634,1768.5,1767.6,4.97111087]
[1745509948789,5.65527183,1768.3,1767.8,5.65652574]
[1745509948946,5.65527183,1768.3,1767.9,6.22197114]
[1745509949151,5.65482922,1768.4,1767.9,6.22183742]
[1745509949366,5.65482922,1768.4,1767.9,6.44173742]
[1745509949566,5.65482922,1768.4,1768.0,5.65608506]
[1745509949992,0.7648,1768.8,1767.9,0.78555257]
[1745509950183,6.4184482,1768.8,1768.4,5.65467445]
[1745509950482,6.41837427,1768.8,1768.4,5.65467445]
[1745509950684,0.7648,1768.8,1768.4,5.65465302]
[1745509950849,0.7648,1768.8,1768.1,5.65570577]
[1745509950850,0.7648,1768.8,1768.1,0.2199]
[1745509951051,5.65387007,1768.7,1767.9,9.44184232]
[1745509951253,5.65502122,1768.4,1768.0,6.1796855]
[1745509951498,5.65502122,1768.4,1768.0,0.52372579]
[1745509951499,5.65578869,1768.1,1768.0,0.52372579]
[1745509951790,0.832,1768.3,1768.0,0.52372579]
[1745509951791,6.48726754,1768.3,1768.0,0.52372579]
[1745509951967,5.65558554,1768.2,1767.8,5.65651013]
[1745509952193,5.65558554,1768.2,1767.9,0.56565101]
[1745509952382,5.65586848,1768.1,1767.7,5.65689584]
[1745509952588,5.65586848,1768.1,1767.7,5.656844]
[1745509952756,5.65560853,1768.2,1767.8,5.65659443]
[1745509953295,5.65584312,1768.1,1767.6,11.53434252]
[1745509953495,5.65560183,1768.2,1767.8,5.65661842]
[1745509953787,5.65592811,1768.1,1767.7,5.65693222]
[1745509953983,5.65592811,1768.1,1767.8,0.56569322]
[1745509954393,5.65560183,1768.2,1767.8,0.56569322]
[1745509954687,5.65550079,1768.2,1767.8,6.22225845]
[1745509955198,5.65594597,1768.1,1767.6,5.87716194]
[1745509955402,5.65597235,1768.1,1767.7,5.65703165]
[1745509955560,6.48719902,1768.3,1767.6,5.87727914]
[1745509955908,12.12176865,1767.9,1767.5,5.65759802]
[1745509956125,6.46505443,1767.9,1767.5,5.65759802]
[1745509956434,10.76089099,1768.1,1767.7,5.65700593]
[1745509956583,10.76093372,1768.1,1767.7,5.65700593]
[1745509956778,8.65551062,1768.2,1767.9,0.2199]
[1745509957139,11.56974244,1768.4,1768.0,5.65598784]
[1745509957140,11.56945962,1768.4,1768.0,5.65598784]
[1745509957623,11.56945962,1768.4,1767.9,5.87617847]
[1745509957624,5.9146,1768.4,1768.1,5.65566023]
[1745509957821,0.8086,1768.4,1768.1,6.22122625]
[1745509958007,5.65476381,1768.5,1768.1,0.56556602]
[1745509958182,0.8076,1768.6,1767.9,11.53248256]
[1745509958183,5.65522128,1768.3,1767.9,11.53248256]
[1745509958384,5.65558476,1768.2,1767.8,11.31323662]
[1745509958594,5.65522128,1768.3,1767.9,5.65640921]
[1745509958791,6.47958647,1768.2,1767.7,5.8768515]
[1745509959079,5.65588003,1768.1,1767.8,0.52496299]
[1745509959414,5.65617043,1768.0,1767.8,0.52496299]
[1745509959590,5.65600099,1768.1,1767.8,0.52496299]
[1745509959794,5.65600099,1768.1,1767.7,0.2199]
[1745509960018,5.65600099,1768.1,1767.7,5.87683745]
[1745509960213,5.65600099,1768.1,1767.5,7.03095018]
[1745509960214,1.21355568,1768.1,1767.5,7.03095018]
[1745509960385,5.65645,1767.9,1767.5,7.03095018]
[1745509960915,5.65645,1767.9,1767.6,0.52528678]
[1745509961285,0.7782,1768.0,1767.6,0.52528678]
[1745509961521,5.6570685,1767.7,1767.3,5.87811439]
[1745509961686,5.6570685,1767.7,1767.3,7.54237919]
[1745509961881,5.6570685,1767.7,1767.3,1.8841648]
[1745509962087,6.43576006,1767.6,1767.3,1.6642648]
[1745509962628,6.43576006,1767.6,1767.1,0.2199]
[1745509962809,16.965,1768.4,1767.5,0.2199]
[1745509962810,0.7854,1768.3,1767.5,0.2199]
[1745509962989,0.7854,1768.3,1767.9,5.65640889]
[1745509963187,0.7854,1768.3,1768.1,5.65553245]
[1745509963387,0.7854,1768.3,1768.2,5.65546883]
[1745509963601,0.8014,1768.6,1768.2,5.65546883]
[1745509963827,7.61177717,1768.6,1768.2,5.65524165]
[1745509964019,1.95753679,1768.6,1768.0,4.97111087]
[1745509964194,1.95753679,1768.6,1768.4,5.65468291]
[1745509964195,0.8014,1768.6,1768.4,5.65468291]
[1745509964399,5.9074,1768.8,1768.4,5.65465064]
[1745509964607,11.56100481,1768.8,1768.3,5.65499425]
[1745509964810,5.65404838,1768.7,1768.2,5.6552478]
[1745509965001,0.56540484,1768.6,1768.4,5.65470476]
[1745509965196,5.9074,1768.8,1768.3,5.65493232]
[1745509965431,11.56114186,1768.8,1768.3,11.30988945]
[1745509965597,11.56114186,1768.8,1768.4,5.6547952]
[1745509965799,11.56114186,1768.8,1768.3,5.65503389]
[1745509966213,11.56114186,1768.8,1768.4,5.65478775]
[1745509966445,1.15611419,1768.7,1768.4,5.65478775]
[1745509966737,1.15611419,1768.7,1768.3,5.65503389]
[1745509966899,1.15611419,1768.7,1768.3,11.30995112]
[1745509967218,1.15611419,1768.7,1768.4,5.6548088]
[1745509967421,1.15611419,1768.7,1768.3,5.65492577]
[1745509967621,6.81013606,1768.7,1768.2,5.65532918]
[1745509967826,0.68101361,1768.6,1768.5,5.65450947]
[1745509968031,1.15611419,1768.7,1768.5,5.65450947]
[1745509968900,1.15611419,1768.7,1768.3,5.65510677]
[1745509969242,23.40785053,1769.1,1768.7,5.65385964]
[1745509969417,17.7551,1769.1,1768.7,5.65385964]
[1745509969733,17.7551,1769.1,1768.7,5.65367359]
[1745509970053,17.7551,1769.1,1768.8,5.65354041]
[1745509970337,1.77551,1769.0,1768.7,5.65365363]
[1745509970500,1.77551,1769.0,1768.6,11.30807281]
[1745509970700,1.77551,1769.0,1768.8,5.65326814]
[1745509970902,5.106,1769.2,1768.9,5.65322522]
[1745509971136,0.7836,1769.3,1769.0,5.65272528]
[1745509971465,0.7836,1769.3,1768.8,0.2199]
[1745509971872,5.65285138,1769.1,1768.9,0.52639602]
[1745509972036,5.65285138,1769.1,1768.6,0.2199]
[1745509972381,0.56528514,1769.0,1768.6,0.2199]
[1745509972569,1.39308514,1769.0,1768.4,0.2199]
[1745509972878,0.56528514,1769.0,1768.7,0.52638359]
[1745509973053,5.9328,1769.2,1768.7,0.52638359]
[1745509973375,5.65267764,1769.1,1768.8,0.52638359]
[1745509973762,5.9328,1769.2,1768.8,0.52638359]
[1745509973941,11.58519328,1769.2,1768.5,3.0]
[1745509974141,5.9328,1769.2,1768.5,8.71100368]
[1745509974438,7.65651958,1769.2,1768.6,0.2199]
[1745509974775,5.105,1769.2,1768.7,0.58263663]
[1745509974960,5.105,1769.2,1768.8,0.52610879]
[1745509975592,0.7977,1769.4,1768.9,0.74600879]
[1745509975794,6.44938753,1769.4,1768.9,0.74600879]
[1745509976004,0.64493875,1769.3,1769.0,0.52610879]
[1745509976295,5.104,1769.5,1769.0,0.52610879]
[1745509976474,5.104,1769.5,1769.1,0.52610879]
[1745509976877,5.104,1769.5,1769.2,0.52610879]
[1745509977075,5.65081255,1769.7,1769.3,0.2199]
[1745509977286,0.56508126,1769.6,1769.3,0.2199]
[1745509977824,6.45049397,1770.0,1769.4,11.20434909]
[1745509978317,6.4505069,1770.0,1769.5,0.52520934]
[1745509978554,6.4505069,1770.0,1769.6,0.27640377]
[1745509978807,5.65004351,1769.9,1769.6,0.2199]
[1745509979003,5.65023064,1769.9,1769.6,0.2199]
[1745509979201,0.56502306,1769.8,1769.3,3.2199]
[1745509979503,5.6502387,1769.9,1769.4,0.52409718]
[1745509979808,6.45051653,1770.0,1769.5,0.2199]
[1745509980099,0.8006,1770.0,1769.5,0.2199]
[1745509980314,5.6504942,1769.8,1769.5,0.2199]
[1745509980877,5.65003672,1769.9,1769.5,0.2199]
[1745509981087,6.21554756,1769.8,1769.5,0.2199]
[1745509981615,5.65082129,1769.7,1769.5,0.2199]
[1745509981984,5.65116243,1769.6,1769.3,5.3239]
[1745509982187,5.65116243,1769.6,1769.3,0.2199]
[1745509983327,5.65163332,1769.4,1769.1,5.3199]
[1745509983623,1.13019837,1769.6,1769.1,10.97236388]
[1745509983789,6.21550174,1769.8,1769.3,5.65165074]
[1745509983996,5.65015493,1769.9,1769.4,10.62257092]
[1745509984209,5.65015493,1769.9,1769.4,16.27402725]
[1745509984390,11.29988194,1770.0,1769.5,5.87110903]
[1745509984596,5.65024169,1769.9,1769.5,2.29089207]
[1745509984822,5.65049198,1769.8,1769.5,0.2199]
[1745509985397,5.65024169,1769.9,1769.5,0.2199]
[1745509985783,5.6504624,1769.8,1769.5,0.2199]
[1745509985983,11.30111631,1769.8,1769.5,0.2199]
[1745509986228,5.65073231,1769.7,1769.5,0.2199]
[1745509986857,5.65124223,1769.6,1769.3,0.2199]
[1745509987075,5.65124223,1769.6,1769.3,0.54189]
[1745509987368,5.65124223,1769.6,1769.3,0.2199]
[1745509987535,5.6514777,1769.5,1769.3,0.2199]
[1745509987740,5.65124164,1769.6,1769.3,0.2199]
[1745509988068,5.65078471,1769.7,1769.3,0.2199]
[1745509988231,5.65078471,1769.7,1769.3,5.87184748]
[1745509988428,5.65122592,1769.6,1769.3,1.3779472]
[1745509988981,5.65149805,1769.5,1769.3,0.2199]
[1745509989468,5.65154697,1769.5,1769.3,0.2199]
[1745509990372,6.43388137,1769.8,1769.4,0.05651313]
[1745509990574,5.6507848,1769.7,1769.4,3.0]
[1745509991320,5.65107234,1769.6,1769.4,3.0]
[1745509991519,5.65131393,1769.5,1769.4,3.0]
[1745509992307,5.65131393,1769.5,1769.1,5.3199]
[1745509992308,5.65215927,1769.3,1769.1,0.2199]
[1745509992925,5.65215927,1769.3,1768.7,0.2199]
[1745509993081,5.65215927,1769.3,1768.7,5.87365602]
[1745509993082,5.65274154,1769.1,1768.7,5.87365602]
[1745509993279,5.65218202,1769.3,1768.8,6.1786962]
[1745509993479,5.6524286,1769.2,1768.8,7.38392773]
[1745509993711,5.6524286,1769.2,1768.8,7.38406627]
[1745509994011,5.6520956,1769.3,1768.9,0.52539978]
[1745509994220,5.65197365,1769.3,1768.9,6.17860047]
[1745509994420,5.65241434,1769.2,1769.0,0.52539978]
[1745509994633,5.65259171,1769.1,1769.0,0.52539978]
[1745509995291,5.65323082,1768.9,1768.8,0.52539978]
[1745509995490,5.65298352,1769.0,1768.8,0.52539978]
[1745509995693,5.65240131,1769.2,1768.8,5.65350624]
[1745509995898,5.65240131,1769.2,1768.8,6.21882725]
[1745509996296,5.65240131,1769.2,1768.9,0.52539978]
[1745509996516,11.30495553,1769.2,1768.9,0.52539978]
[1745509996922,5.65240131,1769.2,1768.9,0.52539978]
[1745509997342,5.8597,1769.3,1769.0,5.65275856]
[1745509997541,5.098,1769.3,1769.1,5.65241968]
[1745509997706,0.8163,1769.7,1769.2,0.52539978]
[1745509998047,5.65176101,1769.4,1769.2,0.52539978]
[1745509998234,5.65195274,1769.3,1769.0,0.74529978]
[1745509998586,5.65195274,1769.3,1769.1,0.52539978]
[1745509999035,5.65195274,1769.3,1769.2,0.52539978]
[1745509999490,7.58692077,1769.3,1769.2,0.52539978]
[1745509999890,5.65285447,1769.1,1768.9,0.52539978]
[1745510000337,5.65285447,1769.1,1769.0,0.52539978]
[1745510001729,5.65241177,1769.2,1769.0,0.52539978]
[1745510001928,0.8046,1769.3,1769.0,0.52539978]
[1745510002128,5.6523364,1769.2,1769.1,0.52539978]
[1745510002305,6.45658154,1769.3,1769.1,0.52539978]
[1745510002509,16.4026776,1769.4,1769.1,0.52539978]
[1745510002709,5.65195468,1769.3,1769.0,5.65276863]
[1745510002915,5.65195468,1769.3,1769.0,1.13058292]
[1745510003127,5.099,1769.4,1769.0,1.13058292]
[1745510003325,5.65247657,1769.2,1768.8,5.87342256]
[1745510003525,5.65208412,1769.3,1768.8,5.87329552]
[1745510003717,5.65208412,1769.3,1768.9,5.65304468]
[1745510003916,5.65208412,1769.3,1769.0,0.5271759]
[1745510004299,5.65240651,1769.2,1769.0,0.5271759]
[1745510004645,5.65240651,1769.2,1769.1,0.5271759]
[1745510005845,5.65259377,1769.1,1768.9,0.5271759]
[1745510006051,5.65291124,1769.0,1768.9,0.5271759]
[1745510006347,6.43703389,1769.1,1768.9,0.5271759]
[1745510006520,6.44035176,1769.3,1768.9,0.5271759]
[1745510006720,11.3050691,1769.2,1768.9,0.5271759]
[1745510006952,5.65261466,1769.1,1768.9,0.5271759]
[1745510007319,5.65261466,1769.1,1769.0,0.5271759]
[1745510008749,5.65261466,1769.1,1768.9,0.5271759]
[1745510008750,5.65291124,1769.0,1768.9,0.5271759]